Workbook

Sheet паспорт
A1: ПАТ "УКРТРАНСГАЗ" | G1: ПАСПОРТ ФІЗИКО-ХІМІЧНИХ ПОКАЗНИКІВ ПРИРОДНОГО ГАЗУ № 61
A2: Філія "УМГ "Київтрансгаз" | G2: переданого Лубенським ЛВУМГ та прийнятого ПАТ "Полтавагаз", ПАТ "Лубнигаз", ПАТ "Чернігівгаз"
A3: Лубенський п/м Лубенське ЛВУМГ | G3: Маршрут № 61
A4: Вимірювальна хіміко-аналітична лабораторія
A5: Свідоцтво № 199-15 чинно до 31.12.2018 р. | K5: по газопроводу "Гнідинці - Шебелинка-Полтава-Київ " | V5: за період з | X5: 2017-09-01 | Z5: по | AA5: 2017-09-30
A7: Число місяця | B7: Компонентний склад, % мол. | N7: Фізико-хімічні показники газу обчислені на основі компонентного складу, 101,325 кПа | X7: Температура точки роси за вологою (Р = 3.92 МПа), ºС | Y7: Температура точки роси за вуглеводнями, ºС | Z7: Вміст сірководню, г/м3 | AA7: Вміст меркаптанової сірки, г/м3 | AB7: Вміст механічних домішок, г/м3
N8: Густина абсолютна, кг/м3,при 20 ºС, | O8: Температура вимірювання/згоряння при 20/25°С
B9: метан, С1 | C9: етан, С2 | D9: пропан, С3 | E9: ізо-бутан, і-С4 | F9: н-бутан, н-С4 | G9: нео-пентан, нео-С5 | H9: ізо-пентан, і-С5 | I9: н-пентан, н-С5 | J9: гексани та вищі, С6+ | K9: кисень, О2 | L9: азот, N2 | M9: діоксид вуглецю, CО2 | O9: Теплота згоряння нижча | R9: Теплота згоряння вища | U9: Число Воббе вище
O10: ккал/м3 | P10: МДж/м3 | Q10: кВт⋅год/м3 | R10: ккал/м3 | S10: МДж/м3 | T10: кВт⋅год/м3 | U10: ккал/м3 | V10: МДж/м3 | W10: кВт⋅год/м3
A11: 1 | O11: 8207 | P11: 34.36 | Q11: 9.54 | R11: 9088 | S11: 38.05 | T11: 10.57 | U11: 11431 | V11: 47.86 | W11: 13.29 | AC11: =SUM(B11:M11)+$K$42+$N$42 -> 0
A12: 2 | O12: 8207 | P12: 34.36 | Q12: 9.54 | R12: 9088 | S12: 38.05 | T12: 10.57 | U12: 11431 | V12: 47.86 | W12: 13.29 | AC12: 0
A13: 3 | O13: 8207 | P13: 34.36 | Q13: 9.54 | R13: 9088 | S13: 38.05 | T13: 10.57 | U13: 11431 | V13: 47.86 | W13: 13.29 | AC13: 0 | AD13: =IF(AC13=100,"ОК"," ") -> 
A14: 4 | B14: =[1]Лист1!$D$19 -> 89.0401 | C14: =[1]Лист1!$D$20 -> 5.166 | D14: =[1]Лист1!$D$21 -> 1.105 | E14: =[1]Лист1!$D$22 -> 0.114 | F14: =[1]Лист1!$D$23 -> 0.182 | G14: =[1]Лист1!$D$24 -> 0.0039 | H14: =[1]Лист1!$D$25 -> 0.049 | I14: =[1]Лист1!$D$26 -> 0.04 | J14: =[1]Лист1!$D$27 -> 0.076 | K14: =[1]Лист1!$D$28 -> 0.004 | L14: =[1]Лист1!$D$29 -> 1.405 | M14: =[1]Лист1!$D$30 -> 2.815 | N14: =[1]Лист1!$F$36 -> 0.761 | O14: =[1]Лист1!$F$92 -> 8209 | P14: =[1]Лист1!$F$91 -> 34.37 | Q14: =[1]Лист1!$F$97 -> 9.547222222 | R14: =[1]Лист1!$F$94 -> 9093 | S14: =[1]Лист1!$F$93 -> 38.07 | T14: =[1]Лист1!$F$98 -> 10.575 | U14: =[1]Лист1!$F$96 -> 11438 | V14: =[1]Лист1!$F$95 -> 47.89 | W14: =V14/3.6 -> 13.30277778 | X14: -2.6 | Y14: -3.5 | AB14: відсут. | AC14: 100 | AD14: =IF(AC14=100,"ОК"," ") -> ОК
A15: 5 | O15: =[1]Лист1!$F$92 -> 8209 | P15: =[1]Лист1!$F$91 -> 34.37 | Q15: =[1]Лист1!$F$97 -> 9.547222222 | R15: =[1]Лист1!$F$94 -> 9093 | S15: =[1]Лист1!$F$93 -> 38.07 | T15: =[1]Лист1!$F$98 -> 10.575 | U15: =[1]Лист1!$F$96 -> 11438 | V15: =[1]Лист1!$F$95 -> 47.89 | W15: =V15/3.6 -> 13.30277778 | Z15: 0.0037 | AA15: ˂0,0002 | AC15: 0
A16: 6 | O16: =[1]Лист1!$F$92 -> 8209 | P16: =[1]Лист1!$F$91 -> 34.37 | Q16: =[1]Лист1!$F$97 -> 9.547222222 | R16: =[1]Лист1!$F$94 -> 9093 | S16: =[1]Лист1!$F$93 -> 38.07 | T16: =[1]Лист1!$F$98 -> 10.575 | U16: =[1]Лист1!$F$96 -> 11438 | V16: =[1]Лист1!$F$95 -> 47.89 | W16: 13.30277778 | AC16: 0
A17: 7 | O17: =[1]Лист1!$F$92 -> 8209 | P17: =[1]Лист1!$F$91 -> 34.37 | Q17: =[1]Лист1!$F$97 -> 9.547222222 | R17: =[1]Лист1!$F$94 -> 9093 | S17: =[1]Лист1!$F$93 -> 38.07 | T17: =[1]Лист1!$F$98 -> 10.575 | U17: =[1]Лист1!$F$96 -> 11438 | V17: =[1]Лист1!$F$95 -> 47.89 | W17: 13.30277778 | AC17: 0
A18: 8 | O18: =[1]Лист1!$F$92 -> 8209 | P18: =[1]Лист1!$F$91 -> 34.37 | Q18: =[1]Лист1!$F$97 -> 9.547222222 | R18: =[1]Лист1!$F$94 -> 9093 | S18: =[1]Лист1!$F$93 -> 38.07 | T18: =[1]Лист1!$F$98 -> 10.575 | U18: =[1]Лист1!$F$96 -> 11438 | V18: =[1]Лист1!$F$95 -> 47.89 | W18: 13.30277778 | AC18: 0
A19: 9 | O19: =[1]Лист1!$F$92 -> 8209 | P19: =[1]Лист1!$F$91 -> 34.37 | Q19: =[1]Лист1!$F$97 -> 9.547222222 | R19: =[1]Лист1!$F$94 -> 9093 | S19: =[1]Лист1!$F$93 -> 38.07 | T19: =[1]Лист1!$F$98 -> 10.575 | U19: =[1]Лист1!$F$96 -> 11438 | V19: =[1]Лист1!$F$95 -> 47.89 | W19: 13.30277778 | AC19: 0
A20: 10 | O20: =[1]Лист1!$F$92 -> 8209 | P20: =[1]Лист1!$F$91 -> 34.37 | Q20: =[1]Лист1!$F$97 -> 9.547222222 | R20: =[1]Лист1!$F$94 -> 9093 | S20: =[1]Лист1!$F$93 -> 38.07 | T20: =[1]Лист1!$F$98 -> 10.575 | U20: =[1]Лист1!$F$96 -> 11438 | V20: =[1]Лист1!$F$95 -> 47.89 | W20: 13.30277778 | AC20: 0
A21: 11 | B21: =[2]Лист1!$D$19 -> 89.2772 | C21: =[2]Лист1!$D$20 -> 5.085 | D21: =[2]Лист1!$D$21 -> 1.086 | E21: =[2]Лист1!$D$22 -> 0.115 | F21: =[2]Лист1!$D$23 -> 0.185 | G21: =[2]Лист1!$D$24 -> 0.0038 | H21: =[2]Лист1!$D$25 -> 0.051 | I21: =[2]Лист1!$D$26 -> 0.04 | J21: =[2]Лист1!$D$27 -> 0.074 | K21: =[2]Лист1!$D$28 -> 0.005 | L21: =[2]Лист1!$D$29 -> 1.483 | M21: =[2]Лист1!$D$30 -> 2.595 | N21: =[2]Лист1!$F$36 -> 0.7582 | O21: =[2]Лист1!$F$92 -> 8214 | P21: =[2]Лист1!$F$91 -> 34.39 | Q21: =[2]Лист1!$F$97 -> 9.552777778 | R21: =[2]Лист1!$F$94 -> 9098 | S21: =[2]Лист1!$F$93 -> 38.09 | T21: =[2]Лист1!$F$98 -> 10.58055556 | U21: =[2]Лист1!$F$96 -> 11467 | V21: =[2]Лист1!$F$95 -> 48.01 | W21: =V21/3.6 -> 13.33611111 | X21: -2.4 | Y21: -5.5 | AC21: 100 | AD21: ОК
A22: 12 | O22: =[2]Лист1!$F$92 -> 8214 | P22: =[2]Лист1!$F$91 -> 34.39 | Q22: =[2]Лист1!$F$97 -> 9.552777778 | R22: =[2]Лист1!$F$94 -> 9098 | S22: =[2]Лист1!$F$93 -> 38.09 | T22: =[2]Лист1!$F$98 -> 10.58055556 | U22: =[2]Лист1!$F$96 -> 11467 | V22: =[2]Лист1!$F$95 -> 48.01 | W22: =V22/3.6 -> 13.33611111 | AC22: 0
A23: 13 | O23: =[2]Лист1!$F$92 -> 8214 | P23: =[2]Лист1!$F$91 -> 34.39 | Q23: =[2]Лист1!$F$97 -> 9.552777778 | R23: =[2]Лист1!$F$94 -> 9098 | S23: =[2]Лист1!$F$93 -> 38.09 | T23: =[2]Лист1!$F$98 -> 10.58055556 | U23: =[2]Лист1!$F$96 -> 11467 | V23: =[2]Лист1!$F$95 -> 48.01 | W23: 13.33611111 | AC23: 0
A24: 14 | O24: =[2]Лист1!$F$92 -> 8214 | P24: =[2]Лист1!$F$91 -> 34.39 | Q24: =[2]Лист1!$F$97 -> 9.552777778 | R24: =[2]Лист1!$F$94 -> 9098 | S24: =[2]Лист1!$F$93 -> 38.09 | T24: =[2]Лист1!$F$98 -> 10.58055556 | U24: =[2]Лист1!$F$96 -> 11467 | V24: =[2]Лист1!$F$95 -> 48.01 | W24: 13.33611111 | AC24: 0
A25: 15 | O25: =[2]Лист1!$F$92 -> 8214 | P25: =[2]Лист1!$F$91 -> 34.39 | Q25: =[2]Лист1!$F$97 -> 9.552777778 | R25: =[2]Лист1!$F$94 -> 9098 | S25: =[2]Лист1!$F$93 -> 38.09 | T25: =[2]Лист1!$F$98 -> 10.58055556 | U25: =[2]Лист1!$F$96 -> 11467 | V25: =[2]Лист1!$F$95 -> 48.01 | W25: 13.33611111 | AC25: 0
A26: 16 | O26: =[2]Лист1!$F$92 -> 8214 | P26: =[2]Лист1!$F$91 -> 34.39 | Q26: =[2]Лист1!$F$97 -> 9.552777778 | R26: =[2]Лист1!$F$94 -> 9098 | S26: =[2]Лист1!$F$93 -> 38.09 | T26: =[2]Лист1!$F$98 -> 10.58055556 | U26: =[2]Лист1!$F$96 -> 11467 | V26: =[2]Лист1!$F$95 -> 48.01 | W26: 13.33611111 | AC26: 0
A27: 17 | O27: =[2]Лист1!$F$92 -> 8214 | P27: =[2]Лист1!$F$91 -> 34.39 | Q27: =[2]Лист1!$F$97 -> 9.552777778 | R27: =[2]Лист1!$F$94 -> 9098 | S27: =[2]Лист1!$F$93 -> 38.09 | T27: =[2]Лист1!$F$98 -> 10.58055556 | U27: =[2]Лист1!$F$96 -> 11467 | V27: =[2]Лист1!$F$95 -> 48.01 | W27: 13.33611111 | AC27: 0
A28: 18 | AC28: 0
A29: 19 | AC29: 0
A30: 20 | AC30: 0 | AD30: =IF(AC30=100,"ОК"," ") -> 
A31: 21 | AC31: 0
A32: 22 | AC32: 0
A33: 23 | AC33: 0 | AD33: =IF(AC33=100,"ОК"," ") -> 
A34: 24 | AC34: 0
A35: 25 | AC35: 0
A36: 26 | AC36: 0
A37: 27 | AC37: 0
A38: 28 | AC38: 0
A39: 29 | AC39: 0
A40: 30 | AC40: 0
A41: 31 | AC41: 0
A42: Рівень одоризації відповідає чинним нормативним документам | O42: 8210.573915 | P42: 34.37591822 | Q42: 9.548027426 | R42: 9094.007761 | S42: 38.07403104 | T42: 10.58
H43: Середньозважене значення теплоти згоряння:
B46: Головний інженер Лубенського ЛВУМГ Сирота В.П. 02.10.2017 року
C47: Підрозділу підприємства, якому підпорядкована лабораторія | O47: прізвище | R47: підпис | V47: дата
B48: Завідувач лабораторією Лубенського ЛВУМГ Алєксєєнко Н.А. 02.10.2017 року
C49: Лабораторія, де здійснювалось вимірювання газу | O49: прізвище | R49: підпис | V49: дата
B50: Начальник служби ГВ та М Шило О.Є. 02.10.2017 року
C51: Підрозділу, відповідального за облік газу за маршрутом | O51: прізвище | R51: підпис | V51: дата

Sheet розрахунок
A2: Додаток до Паспорту фізико-хімічних показників природного газу по маршруту № 61
A4: Число місяця | B4: Теплота згоряння вища, МДж/м3 | C4: Полтавська область | E4: Чернігівська область | F4: Загальний обсяг газу, м3
C5: Обсяг газу переданого за добу, м3 | E5: Обсяг газу переданого за добу, м3
C6: ГРС Чорнуха | D6: ГРС Вишневе | E6: ГРС Богдани
A7: 1 | B7: 38.05 | C7: 3508.29 | D7: 389.49 | E7: 205.69 | F7: =SUM(C7:E7) -> 4103.47
A8: 2 | B8: 38.05 | C8: 3566.86 | D8: 375.84 | E8: 230.91 | F8: 4173.61
A9: 3 | B9: 38.05 | C9: 3371.33 | D9: 396.68 | E9: 192.72 | F9: 3960.73
A10: 4 | B10: 38.07 | C10: 2925.11 | D10: 235.03 | E10: 155.99 | F10: 3316.13
A11: 5 | B11: 38.07 | C11: 3220.06 | D11: 304.02 | E11: 189.77 | F11: 3713.85
A12: 6 | B12: 38.07 | C12: 3285.31 | D12: 482.13 | E12: 226.78 | F12: 3994.22
A13: 7 | B13: 38.07 | C13: 3401.26 | D13: 337.64 | E13: 239.71 | F13: 3978.61
A14: 8 | B14: 38.07 | C14: 3385.83 | D14: 348.71 | E14: 240.06 | F14: 3974.6
A15: 9 | B15: 38.07 | C15: 3549.01 | D15: 333.93 | E15: 251.78 | F15: 4134.72
A16: 10 | B16: 38.07 | C16: 3557.14 | D16: 416.62 | E16: 215.46 | F16: 4189.22
A17: 11 | B17: 38.09 | C17: 2826.46 | D17: 240.59 | E17: 129.81 | F17: 3196.86
A18: 12 | B18: 38.09 | C18: 2933.61 | D18: 293.07 | E18: 161.51 | F18: 3388.19
A19: 13 | B19: 38.09 | C19: 3192.86 | D19: 317.78 | E19: 167.33 | F19: 3677.97
A20: 14 | B20: 38.09 | C20: 3145.03 | D20: 285.17 | E20: 183.24 | F20: 3613.44
A21: 15 | B21: 38.09 | C21: 3256.7 | D21: 282.86 | E21: 170.91 | F21: 3710.47
A22: 16 | B22: 38.09 | C22: 3407.41 | D22: 388.6 | E22: 172.77 | F22: 3968.78
A23: 17 | B23: 38.09 | C23: 3313.46 | D23: 257.51 | E23: 181.19 | F23: 3752.16
A24: 18 | F24: 0
A25: 19 | F25: 0
A26: 20 | F26: 0
A27: 21 | F27: 0
A28: 22 | F28: 0
A29: 23 | F29: 0
A30: 24 | F30: 0
A31: 25 | F31: 0
A32: 26 | F32: 0
A33: 27 | F33: 0
A34: 28 | F34: 0
A35: 29 | F35: 0
A36: 30 | F36: 0
A37: 31 | F37: 0
A38: Загальний обсяг газу, м3 | C38: =SUM(C7:C37) -> 55845.73 | D38: =SUM(D7:D37) -> 5685.67 | E38: =SUM(E7:E37) -> 3315.63 | F38: =SUM(F7:F37) -> 64847.03
A39: Енергія, МДж | C39: =SUMPRODUCT(B7:B37,C7:C37) -> 2126279.522 | D39: =SUMPRODUCT(B7:B37,D7:D37) -> 216471.5283 | E39: =SUMPRODUCT(B7:B37,E7:E37) -> 126236.7829 | F39: =SUMPRODUCT(B7:B37,F7:F37) -> 2468987.833
A40: Теплота згоряння (середньозважене значення за місяць), МДж/м³ | C40: 38.08 | D40: 38.08 | E40: 38.08 | F40: 38.08
A41: Теплота згоряння (середньозважене значення за місяць), ккал/м³ | C41: 9095 | D41: 9095 | E41: 9094 | F41: 9095.251872
A42: Теплота згоряння (середньозважене значення за місяць), кВт*год./м³ | C42: 10.58 | D42: 10.57588289 | E42: 10.58 | F42: 10.58

Sheet додаток
A2: Додаток до Паспорту фізико-хімічних показників природного газу № 61
A4: Область | B4: ГРС, прямий споживач | C4: Cередньозважене значення вищої теплоти згоряння
C5: МДж/м³ | D5: ккал/м³ | E5: кВт*год./м³
A6: Полтавська область | B6: ГРС Чорнухи | C6: 38.08 | D6: 9095 | E6: 10.58
B7: ГРС Вишневе | C7: 38.08 | D7: 9095 | E7: 10.57588289
A8: Чернігівська область | B8: ГРС Богдани | C8: 38.08 | D8: 9094 | E8: 10.58
A9: Середньозважене значення вищої теплоти згоряння по маршруту № 61 | C9: 38.08 | D9: 9095.251872 | E9: 10.58
A13: Головний інженер Лубенського ЛВУМГ Сирота В.П. | F13: 02.10.2017 р.
A14: Підрозділу підприємства, якому підпорядкована лабораторія | D14: прізвище | E14: підпис | F14: дата
A15: Завідувач лабораторією Лубенського ЛВУМГ Алєксєєнко Н.А. | F15: 02.10.2017 р.
A16: Лабораторія, де здійснювалось вимірювання газу | D16: прізвище | E16: підпис | F16: дата
A17: Начальник служби ГВ та М Шило О.Є | F17: 02.10.2017 р.
A18: Підрозділу, відповідального за облік газу за маршрутом | D18: прізвище | E18: підпис | F18: дата

Sheet variablesList (hidden)
A1: 3 | B1: x:\gaysin | C1: 10, 11, 24, 25, 127, 128, 132, 180, 207, 215 | D1: x:\
B2: x:\Illinci
B3: x:\Talne
